Workbook

Sheet LABOR
B2: LABOR CALCULATION
K4: NORMAL | O4: CALL OUT | Q4: CALL OUT
G5: BENEFITS RATE2 | I5: TOTAL | K5: HOURS | M5: OT HRS | O5: DURING WEEK | Q5: WEEKEND | S5: TOTAL | T5: STATE OH5 | U5: BU OH6 | V5: SSU OH7 | W5: TOTAL
B6: POSITION TITLE | C6: FY19 PAY RANGE1 | E6: HOURLY RATE | G6: =0.2874+0.0189+0.08 -> 0.3863 | I6: RATE | K6: WORKED | M6: WORKED | O6: HOURS3 | Q6: HOURS4 | S6: HRS WORKED | T6: 0.0762 | U6: 0.0986 | V6: 0.0484 | W6: LABOR
B7: ADMINISTRATION FEE8 | W7: 98.3
A9: 1 | B9: CONSTRUCTION OPERATOR 1 | C9: 38300 | E9: =ROUND(C9/2080, 2) -> 18.41 | G9: =ROUND(E9*$G$6, 2) -> 7.11 | I9: =E9+G9 -> 25.52 | K9: 0 | M9: 0 | O9: 0 | Q9: 0 | S9: =ROUND(I9*K9, 2) + ROUND(M9*(I9*1.5), 2) + ROUND(O9*(I9*1.5), 2) + ROUND(Q9*(I9*1.5), 2) -> 0 | T9: =ROUND(S9*$T$6, 2) -> 0 | U9: =ROUND(S9*$U$6, 2) -> 0 | V9: =ROUND(S9*$V$6, 2) -> 0 | W9: =SUM(S9:V9) -> 0
A11: 2 | B11: CONSTRUCTION OPERATOR 2 | C11: 47500 | E11: =ROUND(C11/2080, 2) -> 22.84 | G11: =ROUND(E11*$G$6, 2) -> 8.82 | I11: =E11+G11 -> 31.66 | K11: 0 | M11: 0 | O11: 0 | Q11: 0 | S11: =ROUND(I11*K11, 2) + ROUND(M11*(I11*1.5), 2) + ROUND(O11*(I11*1.5), 2) + ROUND(Q11*(I11*1.5), 2) -> 0 | T11: =ROUND(S11*$T$6, 2) -> 0 | U11: =ROUND(S11*$U$6, 2) -> 0 | V11: =ROUND(S11*$V$6, 2) -> 0 | W11: =SUM(S11:V11) -> 0
A13: 3 | B13: SR. CONSTRUCTION OPERATOR | C13: 59200 | E13: =ROUND(C13/2080, 2) -> 28.46 | G13: =ROUND(E13*$G$6, 2) -> 10.99 | I13: =E13+G13 -> 39.45 | K13: 0 | M13: 0 | O13: 0 | Q13: 0 | S13: =ROUND(I13*K13, 2) + ROUND(M13*(I13*1.5), 2) + ROUND(O13*(I13*1.5), 2) + ROUND(Q13*(I13*1.5), 2) -> 0 | T13: 0 | U13: 0 | V13: 0 | W13: 0
A15: 1 | B15: SERVICE TECHNICIAN 1 | C15: 38300 | E15: =ROUND(C15/2080, 2) -> 18.41 | G15: =ROUND(E15*$G$6, 2) -> 7.11 | I15: =E15+G15 -> 25.52 | K15: 0 | M15: 0 | O15: 0 | Q15: 0 | S15: =ROUND(I15*K15, 2) + ROUND(M15*(I15*1.5), 2) + ROUND(O15*(I15*1.5), 2) + ROUND(Q15*(I15*1.5), 2) -> 0 | T15: 0 | U15: 0 | V15: 0 | W15: 0
A17: 2 | B17: SERVICE TECHNICIAN 2 | C17: 47500 | E17: =ROUND(C17/2080, 2) -> 22.84 | G17: =ROUND(E17*$G$6, 2) -> 8.82 | I17: =E17+G17 -> 31.66 | K17: 0 | M17: 0 | O17: 0 | Q17: 0 | S17: =ROUND(I17*K17, 2) + ROUND(M17*(I17*1.5), 2) + ROUND(O17*(I17*1.5), 2) + ROUND(Q17*(I17*1.5), 2) -> 0 | T17: =ROUND(S17*$T$6, 2) -> 0 | U17: =ROUND(S17*$U$6, 2) -> 0 | V17: =ROUND(S17*$V$6, 2) -> 0 | W17: =SUM(S17:V17) -> 0
A19: 3 | B19: SR. SERVICE TECHNICIAN | C19: 59200 | E19: 28.46 | G19: =ROUND(E19*$G$6, 2) -> 10.99 | I19: =E19+G19 -> 39.45 | K19: 0 | M19: 0 | O19: 0 | Q19: 0 | S19: =ROUND(I19*K19, 2) + ROUND(M19*(I19*1.5), 2) + ROUND(O19*(I19*1.5), 2) + ROUND(Q19*(I19*1.5), 2) -> 0 | T19: 0 | U19: 0 | V19: 0 | W19: 0
A21: 2 | B21: OPERATIONS ASSISTANT | C21: 47500 | E21: 22.84 | G21: =ROUND(E21*$G$6, 2) -> 8.82 | I21: =E21+G21 -> 31.66 | K21: 0 | M21: 0 | O21: 0 | Q21: 0 | S21: =ROUND(I21*K21, 2) + ROUND(M21*(I21*1.5), 2) + ROUND(O21*(I21*1.5), 2) + ROUND(Q21*(I21*1.5), 2) -> 0 | T21: 0 | U21: 0 | V21: 0 | W21: 0
A23: 4 | B23: PROJECT SPECIALIST | C23: 73100 | E23: 35.14 | G23: =ROUND(E23*$G$6, 2) -> 13.57 | I23: =E23+G23 -> 48.71 | K23: 0 | M23: 0 | O23: 0 | Q23: 0 | S23: =ROUND(I23*K23, 2) + ROUND(M23*(I23*1.5), 2) + ROUND(O23*(I23*1.5), 2) + ROUND(Q23*(I23*1.5), 2) -> 0 | T23: =ROUND(S23*$T$6, 2) -> 0 | U23: =ROUND(S23*$U$6, 2) -> 0 | V23: =ROUND(S23*$V$6, 2) -> 0 | W23: =SUM(S23:V23) -> 0
A25: 5 | B25: SR. PROJECT SPECIALIST | C25: 91700 | E25: 44.09 | G25: =ROUND(E25*$G$6, 2) -> 17.03 | I25: =E25+G25 -> 61.12 | K25: 0 | M25: 0 | O25: 0 | Q25: 0 | S25: =ROUND(I25*K25, 2) + ROUND(M25*(I25*1.5), 2) + ROUND(O25*(I25*1.5), 2) + ROUND(Q25*(I25*1.5), 2) -> 0 | T25: 0 | U25: 0 | V25: 0 | W25: 0
A27: 4 | B27: ENGINEER 1 | C27: 73100 | E27: =ROUND(C27/2080, 2) -> 35.14 | G27: =ROUND(E27*$G$6, 2) -> 13.57 | I27: =E27+G27 -> 48.71 | K27: 0 | M27: 0 | O27: 0 | Q27: 0 | S27: =ROUND(I27*K27, 2) + ROUND(M27*(I27*1.5), 2) + ROUND(O27*(I27*1.5), 2) + ROUND(Q27*(I27*1.5), 2) -> 0 | T27: =ROUND(S27*$T$6, 2) -> 0 | U27: =ROUND(S27*$U$6, 2) -> 0 | V27: =ROUND(S27*$V$6, 2) -> 0 | W27: =SUM(S27:V27) -> 0
A29: 4 | B29: ENGINEER 2 | C29: 73100 | E29: =ROUND(C29/2080, 2) -> 35.14 | G29: =ROUND(E29*$G$6, 2) -> 13.57 | I29: =E29+G29 -> 48.71 | K29: 0 | M29: 0 | O29: 0 | Q29: 0 | S29: =ROUND(I29*K29, 2) + ROUND(M29*(I29*1.5), 2) + ROUND(O29*(I29*1.5), 2) + ROUND(Q29*(I29*1.5), 2) -> 0 | T29: =ROUND(S29*$T$6, 2) -> 0 | U29: =ROUND(S29*$U$6, 2) -> 0 | V29: =ROUND(S29*$V$6, 2) -> 0 | W29: =SUM(S29:V29) -> 0
A31: 5 | B31: ENGINEER 3 | C31: 91700 | E31: 44.09 | G31: =ROUND(E31*$G$6, 2) -> 17.03 | I31: =E31+G31 -> 61.12 | K31: 0 | M31: 0 | O31: 0 | Q31: 0 | S31: =ROUND(I31*K31, 2) + ROUND(M31*(I31*1.5), 2) + ROUND(O31*(I31*1.5), 2) + ROUND(Q31*(I31*1.5), 2) -> 0 | T31: 0 | U31: 0 | V31: 0 | W31: 0
A33: 6 | B33: SR. ENGINEER | C33: 114900 | E33: 55.24 | G33: =ROUND(E33*$G$6, 2) -> 21.34 | I33: =E33+G33 -> 76.58 | K33: 0 | M33: 0 | O33: 0 | Q33: 0 | S33: =ROUND(I33*K33, 2) + ROUND(M33*(I33*1.5), 2) + ROUND(O33*(I33*1.5), 2) + ROUND(Q33*(I33*1.5), 2) -> 0 | T33: 0 | U33: 0 | V33: 0 | W33: 0
A35: 1 | B35: METER READER 1 & 2 | C35: 38300 | E35: 18.41 | G35: =ROUND(E35*$G$6, 2) -> 7.11 | I35: =E35+G35 -> 25.52 | K35: 0 | M35: 0 | O35: 0 | Q35: 0 | S35: =ROUND(I35*K35, 2) + ROUND(M35*(I35*1.5), 2) + ROUND(O35*(I35*1.5), 2) + ROUND(Q35*(I35*1.5), 2) -> 0 | T35: 0 | U35: 0 | V35: 0 | W35: 0
A37: 3 | B37: WELDER 1 | C37: 59200 | E37: 28.46 | G37: =ROUND(E37*$G$6, 2) -> 10.99 | I37: =E37+G37 -> 39.45 | K37: 0 | M37: 0 | O37: 0 | Q37: 0 | S37: =ROUND(I37*K37, 2) + ROUND(M37*(I37*1.5), 2) + ROUND(O37*(I37*1.5), 2) + ROUND(Q37*(I37*1.5), 2) -> 0 | T37: 0 | U37: 0 | V37: 0 | W37: 0
A39: 4 | B39: WELDER 2 | C39: 73100 | E39: =ROUND(C39/2080, 2) -> 35.14 | G39: =ROUND(E39*$G$6, 2) -> 13.57 | I39: =E39+G39 -> 48.71 | K39: 0 | M39: 0 | O39: 0 | Q39: 0 | S39: =ROUND(I39*K39, 2) + ROUND(M39*(I39*1.5), 2) + ROUND(O39*(I39*1.5), 2) + ROUND(Q39*(I39*1.5), 2) -> 0 | T39: =ROUND(S39*$T$6, 2) -> 0 | U39: =ROUND(S39*$U$6, 2) -> 0 | V39: =ROUND(S39*$V$6, 2) -> 0 | W39: =SUM(S39:V39) -> 0
A41: 4 | B41: CREW LEADER | C41: 73100 | E41: 35.14 | G41: =ROUND(E41*$G$6, 2) -> 13.57 | I41: =E41+G41 -> 48.71 | K41: 0 | M41: 0 | O41: 0 | Q41: 0 | S41: =ROUND(I41*K41, 2) + ROUND(M41*(I41*1.5), 2) + ROUND(O41*(I41*1.5), 2) + ROUND(Q41*(I41*1.5), 2) -> 0 | T41: 0 | U41: 0 | V41: 0 | W41: 0
A43: 4 | B43: TOWN OPERATOR | C43: 73100 | E43: =ROUND(C43/2080, 2) -> 35.14 | G43: =ROUND(E43*$G$6, 2) -> 13.57 | I43: =E43+G43 -> 48.71 | K43: 0 | M43: 0 | O43: 0 | Q43: 0 | S43: =ROUND(I43*K43, 2) + ROUND(M43*(I43*1.5), 2) + ROUND(O43*(I43*1.5), 2) + ROUND(Q43*(I43*1.5), 2) -> 0 | T43: =ROUND(S43*$T$6, 2) -> 0 | U43: =ROUND(S43*$U$6, 2) -> 0 | V43: =ROUND(S43*$V$6, 2) -> 0 | W43: =SUM(S43:V43) -> 0
A45: 4 | B45: DISTRIBUTION OPERATOR | C45: 73100 | E45: 35.14 | G45: =ROUND(E45*$G$6, 2) -> 13.57 | I45: =E45+G45 -> 48.71 | K45: 0 | M45: 0 | O45: 0 | Q45: 0 | S45: =ROUND(I45*K45, 2) + ROUND(M45*(I45*1.5), 2) + ROUND(O45*(I45*1.5), 2) + ROUND(Q45*(I45*1.5), 2) -> 0 | T45: 0 | U45: 0 | V45: 0 | W45: 0
A47: 5 | B47: OPERATIONS SUPERVISOR | C47: 91700 | E47: 44.09 | G47: =ROUND(E47*$G$6, 2) -> 17.03 | I47: =E47+G47 -> 61.12 | K47: 0 | M47: 0 | O47: 0 | Q47: 0 | S47: =ROUND(I47*K47, 2) + ROUND(M47*(I47*1.5), 2) + ROUND(O47*(I47*1.5), 2) + ROUND(Q47*(I47*1.5), 2) -> 0 | T47: 0 | U47: 0 | V47: 0 | W47: 0
B48: TOTAL | K48: =SUM(K11:K47) -> 0 | M48: =SUM(M11:M47) -> 0 | O48: =SUM(O11:O47) -> 0 | Q48: =SUM(Q11:Q47) -> 0 | W48: =SUM(W7:W47) -> 98.3
B50: NOTES:
B51: 1Pay range information is taken from the corporate broad pay grades (Target Pay Mid Point) available on Atmosphere.
B52: 2Benefits rate percentage will update each October. See Josh Densman for annual update.
B53: 3Minmum of 2 hours are to be used for call out during the week after normal business hours
B54: 4Minmum of 3 hours are to be used for call out during the weekend
B55: 5State overhead rate will update each October. See Josh Densman for annual update. Also, state overhead rate is different for each KMD jurisdiction.
B56: 6Business unit overhead rate will update each October. See Josh Densman for annual update.
B57: 7Shared services overhead rate will update each October. See Josh Densman for annual update.
B58: 8Administration fee consists of one hour of time for the Operations Assistant and Project Specialist role. Fee is state specific. See Josh Densman for update.
B59: Cells containing bolded blue text or number may be updated by user depending on the need and situation.

Sheet MATERIALS
A1: WAREHOUSE MATERIALS
K2: Stores OH2 | L2: State OH3 | M2: BU OH4 | N2: Corp.OH5
A3: Quantity | C3: UOM | D3: Description | H3: Unit Cost1 | J3: Total w/o OH | K3: 0.1 | L3: =LABOR!T6 -> 0.0762 | M3: =LABOR!U6 -> 0.0986 | N3: =LABOR!V6 -> 0.0484
A4: 0 | C4: Feet | D4: 1/2" PE Pipe | H4: 0.14 | J4: =ROUND(A4*H4,2) -> 0 | K4: =ROUND(J4*K3, 2) -> 0 | L4: =ROUND(J4*L3, 2) -> 0 | M4: =ROUND(J4*M3, 2) -> 0 | N4: =ROUND(J4*N3, 2) -> 0 | O4: =J4+K4+L4+M4+N4 -> 0
A5: 0 | C5: Feet | D5: 3/4" PE Pipe | H5: 0.25 | J5: 0 | K5: =ROUND(J5*$K$3, 2) -> 0 | L5: =ROUND(J5*$L$3, 2) -> 0 | M5: =ROUND(J5*$M$3, 2) -> 0 | N5: =ROUND(J5*$N$3, 2) -> 0 | O5: 0
A6: 0 | C6: Feet | D6: 1-1/4" PE Pipe | H6: 0.58 | J6: =ROUND(A6*H6,2) -> 0 | K6: 0 | L6: 0 | M6: 0 | N6: =ROUND(J6*$N$3, 2) -> 0 | O6: 0
A7: 0 | C7: Feet | D7: 2" PE Pipe | H7: 1.16 | J7: 0 | K7: 0 | L7: 0 | M7: 0 | N7: 0 | O7: 0
A8: 0 | C8: Feet | D8: 3" PE Pipe | H8: 1.98 | J8: 0 | K8: 0 | L8: 0 | M8: 0 | N8: 0 | O8: 0
A9: 0 | C9: Feet | D9: 4" PE Pipe | H9: 3.27 | J9: 0 | K9: 0 | L9: 0 | M9: 0 | N9: 0 | O9: 0
A10: 0 | C10: Feet | D10: 6" PE Pipe | H10: 7.07 | J10: 0 | K10: 0 | L10: 0 | M10: 0 | N10: 0 | O10: 0
A11: 0 | C11: Each | D11: 1-1/4" Poly Valve | H11: 29.57 | J11: 0 | K11: 0 | L11: 0 | M11: 0 | N11: 0 | O11: 0
A12: 0 | C12: Each | D12: 2" Poly Valve | H12: 63.55 | J12: 0 | K12: 0 | L12: 0 | M12: 0 | N12: 0 | O12: 0
A13: 0 | C13: Each | D13: 3" Poly Valve | H13: 134.64 | J13: 0 | K13: 0 | L13: 0 | M13: 0 | N13: 0 | O13: 0
A14: 0 | C14: Each | D14: 4" Poly Valve | H14: 215.8 | J14: 0 | K14: 0 | L14: 0 | M14: 0 | N14: 0 | O14: 0
A15: 0 | C15: Each | D15: 6" Poly Valve | H15: 549.24 | J15: 0 | K15: 0 | L15: 0 | M15: 0 | N15: 0 | O15: 0
A16: 0 | C16: Each | D16: 1-1/4" Butt Fuse Tee | H16: 3.5 | J16: 0 | K16: 0 | L16: 0 | M16: 0 | N16: 0 | O16: 0
A17: 0 | C17: Each | D17: 2" Butt Fuse Tee | H17: 5.02 | J17: 0 | K17: 0 | L17: 0 | M17: 0 | N17: 0 | O17: 0
A18: 0 | C18: Each | D18: 3" Butt Fuse Tee | H18: 10.69 | J18: 0 | K18: 0 | L18: 0 | M18: 0 | N18: 0 | O18: 0
A19: 0 | C19: Each | D19: 4" Butt Fuse Tee | H19: 16.35 | J19: 0 | K19: 0 | L19: 0 | M19: 0 | N19: 0 | O19: 0
A20: 0 | C20: Each | D20: 6" Butt Fuse Tee | H20: 31.04 | J20: 0 | K20: 0 | L20: 0 | M20: 0 | N20: 0 | O20: 0
A21: 0 | C21: Each | D21: 1" Butt Fuse End Cap | H21: 2.55 | J21: 0 | K21: 0 | L21: 0 | M21: 0 | N21: 0 | O21: 0
A22: 0 | C22: Each | D22: 1-1/4" Butt Fuse End Cap | H22: 2.55 | J22: 0 | K22: 0 | L22: 0 | M22: 0 | N22: 0 | O22: 0
A23: 0 | C23: Each | D23: 2" Butt Fuse End Cap | H23: 1.51 | J23: 0 | K23: 0 | L23: 0 | M23: 0 | N23: 0 | O23: 0
A24: 0 | C24: Each | D24: 3" Butt Fuse End Cap | H24: 4.9 | J24: 0 | K24: 0 | L24: 0 | M24: 0 | N24: 0 | O24: 0
A25: 0 | C25: Each | D25: 4" Butt Fuse End Cap | H25: 7.01 | J25: 0 | K25: 0 | L25: 0 | M25: 0 | N25: 0 | O25: 0
A26: 0 | C26: Each | D26: 6" Butt Fuse End Cap | H26: 18.49 | J26: 0 | K26: 0 | L26: 0 | M26: 0 | N26: 0 | O26: 0
A27: 0 | C27: Each | D27: 1-1/4" Support Clamp | H27: 14.87 | J27: 0 | K27: 0 | L27: 0 | M27: 0 | N27: 0 | O27: 0
A28: 0 | C28: Each | D28: 2" Support Clamp | H28: 12.27 | J28: 0 | K28: 0 | L28: 0 | M28: 0 | N28: 0 | O28: 0
A29: 0 | C29: Each | D29: 3" Support Clamp | H29: 12.04 | J29: 0 | K29: 0 | L29: 0 | M29: 0 | N29: 0 | O29: 0
A30: 0 | C30: Each | D30: 4" Support Clamp | H30: 16.21 | J30: 0 | K30: 0 | L30: 0 | M30: 0 | N30: 0 | O30: 0
A31: 0 | C31: Each | D31: 6" Support Clamp | H31: 27.08 | J31: 0 | K31: 0 | L31: 0 | M31: 0 | N31: 0 | O31: 0
A32: 0 | C32: Each | D32: 2 x 2" EF HV Tap Tee | H32: 49.47 | J32: 0 | K32: 0 | L32: 0 | M32: 0 | N32: 0 | O32: 0
A33: 0 | C33: Each | D33: 4 x 2" EF HV Tap Tee | H33: 67.63 | J33: 0 | K33: 0 | L33: 0 | M33: 0 | N33: 0 | O33: 0
A34: 0 | C34: Each | D34: 6 x 2" EF HV Tap Tee | H34: 66.36 | J34: 0 | K34: 0 | L34: 0 | M34: 0 | N34: 0 | O34: 0
A35: 0 | C35: Each | D35: 3/4 ElectroFuse Coupling | H35: 7.17 | J35: 0 | K35: 0 | L35: 0 | M35: 0 | N35: 0 | O35: 0
A36: 0 | C36: Each | D36: 1" ElectroFuse Coupling | H36: 5.33 | J36: =ROUND(A36*H36,2) -> 0 | K36: 0 | L36: =ROUND(J36*$L$3, 2) -> 0 | M36: =ROUND(J36*$M$3, 2) -> 0 | N36: =ROUND(J36*$N$3, 2) -> 0 | O36: 0
A37: 0 | C37: Each | D37: 1-1/4" ElectroFuse Coupling | H37: 8.88 | J37: 0 | K37: 0 | L37: 0 | M37: 0 | N37: 0 | O37: 0
A38: 0 | C38: Each | D38: 2" ElectroFuse Coupling | H38: 4.37 | J38: 0 | K38: 0 | L38: 0 | M38: 0 | N38: 0 | O38: 0
A39: 0 | C39: Each | D39: 3" ElectroFuse Coupling | H39: 11.3 | J39: 0 | K39: 0 | L39: 0 | M39: 0 | N39: 0 | O39: 0
A40: 0 | C40: Each | D40: 4" ElectroFuse Coupling | H40: 25.74 | J40: 0 | K40: 0 | L40: 0 | M40: 0 | N40: 0 | O40: 0
A41: 0 | C41: Each | D41: 6" ElectroFuse Coupling | H41: 31.72 | J41: 0 | K41: 0 | L41: 0 | M41: 0 | N41: 0 | O41: 0
A42: 0 | C42: Each | D42: 1/2" Expansion Stopper | H42: 2.64 | J42: 0 | K42: 0 | L42: 0 | M42: 0 | N42: 0 | O42: 0
A43: 0 | C43: Each | D43: 3/4" Expansion Stopper | H43: 2.82 | J43: 0 | K43: 0 | L43: 0 | M43: 0 | N43: 0 | O43: 0
A44: 0 | C44: Each | D44: 1-1/4" Expansion Stopper | H44: 2.99 | J44: 0 | K44: 0 | L44: 0 | M44: 0 | N44: 0 | O44: 0
A45: 0 | C45: Each | D45: 2" Expansion Stopper | H45: 3.86 | J45: 0 | K45: 0 | L45: 0 | M45: 0 | N45: 0 | O45: 0
A46: 0 | C46: Each | D46: 3/4 X 1/2" Dresser Coupling | H46: 30.85 | J46: 0 | K46: 0 | L46: 0 | M46: 0 | N46: 0 | O46: 0
A47: 0 | C47: Each | D47: 3/4 X 3/4" Dresser Coupling | H47: 27.31 | J47: 0 | K47: 0 | L47: 0 | M47: 0 | N47: 0 | O47: 0
A48: 0 | C48: Each | D48: 2 X 1-1/4" Dresser Coupling | H48: 36.29 | J48: 0 | K48: 0 | L48: 0 | M48: 0 | N48: 0 | O48: 0
A49: 0 | C49: Each | D49: 2 X 2" Dresser Coupling | H49: 45.67 | J49: 0 | K49: 0 | L49: 0 | M49: 0 | N49: 0 | O49: 0
A50: 0 | C50: Each | D50: 3 X 3" Dresser Coupling | H50: 143.39 | J50: 0 | K50: 0 | L50: 0 | M50: 0 | N50: 0 | O50: 0
A51: 0 | C51: Each | D51: 4 X 4" Dresser Coupling | H51: 47.03 | J51: 0 | K51: 0 | L51: 0 | M51: 0 | N51: 0 | O51: 0
A52: 0 | C52: Each | D52: 1/2" Constab Coupling | H52: 3.8 | J52: 0 | K52: 0 | L52: 0 | M52: 0 | N52: 0 | O52: 0
A53: 0 | C53: Each | D53: 3/4" Constab Coupling | H53: 5.11 | J53: 0 | K53: 0 | L53: 0 | M53: 0 | N53: 0 | O53: 0
A54: 0 | C54: Each | D54: 1" Constab Coupling | H54: 8.37 | J54: 0 | K54: 0 | L54: 0 | M54: 0 | N54: 0 | O54: 0
A55: 0 | C55: Each | D55: 1-1/4" Constab Coupling | H55: 21.6 | J55: 0 | K55: 0 | L55: 0 | M55: 0 | N55: 0 | O55: 0
A56: 0 | C56: Each | D56: 2" Constab Coupling | H56: 21.99 | J56: 0 | K56: 0 | L56: 0 | M56: 0 | N56: 0 | O56: 0
A57: 0 | C57: Each | D57: 2 x 3/4" EF Tapping Tee | H57: 36.76 | J57: 0 | K57: 0 | L57: 0 | M57: 0 | N57: 0 | O57: 0
A58: 0 | C58: Each | D58: 2 x 1-1/4" EF Tapping Tee | H58: 58.75 | J58: 0 | K58: 0 | L58: 0 | M58: 0 | N58: 0 | O58: 0
A59: 0 | C59: Each | D59: 2 X 2" EF Tapping Tee | H59: 49.47 | J59: 0 | K59: 0 | L59: 0 | M59: 0 | N59: 0 | O59: 0
A60: 0 | C60: Each | D60: 1/2" Constab End Cap | H60: 3.54 | J60: 0 | K60: 0 | L60: 0 | M60: 0 | N60: 0 | O60: 0
A61: 0 | C61: Each | D61: 3/4" Constab End Cap | H61: 5.06 | J61: 0 | K61: 0 | L61: 0 | M61: 0 | N61: 0 | O61: 0
A62: 0 | C62: Each | D62: 1" Constab End Cap | H62: 7.39 | J62: 0 | K62: 0 | L62: 0 | M62: 0 | N62: 0 | O62: 0
A63: 0 | C63: Each | D63: 1-1/4" Constab End Cap | H63: 18.51 | J63: 0 | K63: 0 | L63: 0 | M63: 0 | N63: 0 | O63: 0
A64: 0 | C64: Each | D64: 2" Constab End Cap | H64: 16.48 | J64: 0 | K64: 0 | L64: 0 | M64: 0 | N64: 0 | O64: 0
A65: 0 | C65: Each | D65: 3/4" Riser | H65: 52.52 | J65: 0 | K65: 0 | L65: 0 | M65: 0 | N65: 0 | O65: 0
A66: 0 | C66: Each | D66: 1-1/4" Riser | H66: 62.98 | J66: 0 | K66: 0 | L66: 0 | M66: 0 | N66: 0 | O66: 0
A67: 0 | C67: Each | D67: 2" Riser | H67: 121.14 | J67: 0 | K67: 0 | L67: 0 | M67: 0 | N67: 0 | O67: 0
A68: 0 | C68: Each | D68: 3/4" Valve - Stop Cock | H68: 22.67 | J68: =ROUND(A68*H68,2) -> 0 | K68: 0 | L68: 0 | M68: 0 | N68: 0 | O68: =J68+K68+L68+M68+N68 -> 0
A69: 0 | C69: Each | D69: 1" Valve - Stop Cock | H69: 23.33 | J69: 0 | K69: =ROUND(J69*$K$3, 2) -> 0 | L69: =ROUND(J69*$L$3, 2) -> 0 | M69: =ROUND(J69*$M$3, 2) -> 0 | N69: =ROUND(J69*$N$3, 2) -> 0 | O69: 0
A70: 0 | C70: Each | D70: 1-1/4" Valve - Stop Cock | H70: 41.13 | J70: 0 | K70: 0 | L70: 0 | M70: 0 | N70: 0 | O70: 0
A71: 0 | C71: Each | D71: 2" Valve - Stop Cock | H71: 66.37 | J71: 0 | K71: 0 | L71: 0 | M71: 0 | N71: 0 | O71: 0
A72: 0 | C72: Each | D72: Splice Kit | H72: 4.54 | J72: 0 | K72: 0 | L72: 0 | M72: 0 | N72: 0 | O72: 0
A73: 0 | C73: Roll | D73: Marking Tape | H73: 12.49 | J73: =ROUND(A73*H73,2) -> 0 | K73: 0 | L73: 0 | M73: 0 | N73: 0 | O73: 0
A74: 0 | C74: Feet | D74: #12 Wire | H74: 0.12 | J74: =ROUND(A74*H74,2) -> 0 | K74: 0 | L74: 0 | M74: 0 | N74: 0 | O74: 0
A75: 0 | C75: Each | D75: Protective Sleeve 1-1/2 X 18 | H75: 2.72 | J75: =ROUND(A75*H75,2) -> 0 | K75: 0 | L75: 0 | M75: 0 | N75: 0 | O75: 0
A76: 0 | C76: Each | D76: Protective Sleeve 2-1/2 X 30 | H76: 2.72 | J76: 0 | K76: 0 | L76: 0 | M76: 0 | N76: 0 | O76: 0
A77: 0 | C77: Each | D77: 5# Anode | H77: 18.39 | J77: 0 | K77: 0 | L77: 0 | M77: 0 | N77: 0 | O77: 0
A78: 0 | C78: Each | D78: 9# Anode | H78: 33.93 | J78: 0 | K78: 0 | L78: 0 | M78: 0 | N78: 0 | O78: 0
A79: 0 | C79: Each | D79: 17# Anode | H79: 71.35 | J79: 0 | K79: 0 | L79: 0 | M79: 0 | N79: 0 | O79: 0
A80: 0 | C80: Each | D80: Valve Box | H80: 92.11 | J80: 0 | K80: 0 | L80: 0 | M80: 0 | N80: 0 | O80: 0
A81: 0 | C81: Each | D81: Line Markers - ATMOS 3 SIDED | H81: 13.86 | J81: 0 | K81: 0 | L81: 0 | M81: 0 | N81: 0 | O81: 0
A82: 0 | C82: Each | D82: Residential Meter 250 | H82: 65.42 | J82: 0 | K82: 0 | L82: 0 | M82: 0 | N82: 0 | O82: 0
A83: 0 | C83: Each | D83: Residential Meter 250 with AMR | H83: 144.4 | J83: 0 | K83: 0 | L83: 0 | M83: 0 | N83: 0 | O83: 0
A84: 0 | C84: Each | D84: Residential Meter Loop | H84: 87.69 | J84: 0 | K84: 0 | L84: 0 | M84: 0 | N84: 0 | O84: 0
A85: 0 | C85: Each | D85: 1-1/4" Transition Fitting | H85: 16.34 | J85: 0 | K85: 0 | L85: 0 | M85: 0 | N85: 0 | O85: 0
A86: 0 | C86: Each | D86: 2" Transition Fitting | H86: 26.93 | J86: 0 | K86: 0 | L86: 0 | M86: 0 | N86: 0 | O86: 0
A87: 0 | C87: Each | D87: 3" Transition Fitting | H87: 42.53 | J87: 0 | K87: 0 | L87: 0 | M87: 0 | N87: 0 | O87: 0
A88: 0 | C88: Each | D88: 4" Transition Fitting | H88: 66.53 | J88: 0 | K88: 0 | L88: 0 | M88: 0 | N88: 0 | O88: 0
A89: 0 | C89: Each | D89: 6" Transition Fitting | H89: 182.52 | J89: 0 | K89: 0 | L89: 0 | M89: 0 | N89: 0 | O89: 0
A90: 0 | C90: Each | D90: 2" Line Stopper Standard | H90: 131.13 | J90: 0 | K90: 0 | L90: 0 | M90: 0 | N90: 0 | O90: 0
A91: 0 | C91: Each | D91: 2" Line Stopper Bottom Out | H91: 141.35 | J91: 0 | K91: 0 | L91: 0 | M91: 0 | N91: 0 | O91: 0
A92: 0 | C92: Each | D92: 3" Line Stopper Standard | H92: 621.39 | J92: 0 | K92: 0 | L92: 0 | M92: 0 | N92: 0 | O92: 0
A93: 0 | C93: Each | D93: 3" Line Stopper Bottom Out | H93: 653.95 | J93: 0 | K93: 0 | L93: 0 | M93: 0 | N93: 0 | O93: 0
A94: 0 | C94: Each | D94: 4" Line Stopper Standard | H94: 821.12 | J94: 0 | K94: 0 | L94: 0 | M94: 0 | N94: 0 | O94: 0
A95: 0 | C95: Each | D95: 6" Line Stopper Standard | H95: 1177.7 | J95: =ROUND(A95*H95,2) -> 0 | K95: 0 | L95: 0 | M95: 0 | N95: 0 | O95: 0
A96: 0 | C96: Each | D96: 1-1/4 x 3/4 Lycofit Tap Tee | H96: 38.75 | J96: =ROUND(A96*H96,2) -> 0 | K96: 0 | L96: 0 | M96: 0 | N96: 0 | O96: 0
A97: 0 | C97: Each | D97: 2 x 3/4 Lycofit Tap Tee | H97: 45.86 | J97: 0 | K97: 0 | L97: 0 | M97: 0 | N97: 0 | O97: 0
A98: 0 | C98: Each | D98: 4 x 3/4 Lycofit Tap Tee | H98: 74.79 | J98: 0 | K98: 0 | L98: 0 | M98: 0 | N98: 0 | O98: 0
A99: 0 | C99: Each | D99: 6 x 3/4 Lycofit Tap Tee | H99: 104.18 | J99: 0 | K99: 0 | L99: 0 | M99: 0 | N99: 0 | O99: 0
A100: 0 | C100: Each | D100: 3/4 Lycofit coupling | H100: 17.07 | J100: 0 | K100: 0 | L100: 0 | M100: 0 | N100: 0 | O100: 0
A101: 0 | C101: Each | D101: 3/4 Lycofit cap | H101: 16.91 | J101: 0 | K101: 0 | L101: 0 | M101: 0 | N101: 0 | O101: 0
A102: 0 | C102: Each | D102: 3/4 x 1/2 Lycofit coupling | H102: 27.29 | J102: 0 | K102: 0 | L102: 0 | M102: 0 | N102: 0 | O102: 0
A103: 0 | D103: Miscellaneous | H103: 0 | J103: 0 | K103: 0 | L103: 0 | M103: 0 | N103: 0 | O103: 0
A104: 0 | D104: Miscellaneous | H104: 0 | J104: 0 | K104: 0 | L104: 0 | M104: 0 | N104: 0 | O104: 0
A105: 0 | D105: Miscellaneous | H105: 0 | J105: 0 | K105: =ROUND(J105*$K$3, 2) -> 0 | L105: 0 | M105: 0 | N105: 0 | O105: 0
A106: 0 | D106: Miscellaneous | H106: 4 | J106: 0 | K106: =ROUND(J106*$K$3, 2) -> 0 | L106: 0 | M106: 0 | N106: 0 | O106: 0
A107: 0 | D107: Miscellaneous | H107: 0 | J107: 0 | K107: =ROUND(J107*$K$3, 2) -> 0 | L107: 0 | M107: 0 | N107: 0 | O107: 0
A108: 0 | D108: Miscellaneous | H108: 0 | J108: 0 | K108: =ROUND(J108*$K$3, 2) -> 0 | L108: 0 | M108: 0 | N108: 0 | O108: 0
A109: 0 | D109: Miscellaneous | H109: 0 | J109: =ROUND(A109*H109, 2) -> 0 | K109: =ROUND(J109*$K$3, 2) -> 0 | L109: 0 | M109: 0 | N109: 0 | O109: 0
D110: Total Warehouse Materials with Overheads | O110: =SUM(O4:O109) -> 0
A113: OTHER MATERIALS (WITHOUT STORES)
K114: Stores OH2 | L114: State OH3 | M114: BU OH4 | N114: Corp.OH5
A115: Quantity | C115: UOM | D115: Description | H115: Unit Cost1 | J115: Total w/o OH | L115: =L3 -> 0.0762 | M115: =M3 -> 0.0986 | N115: =N3 -> 0.0484
A116: 0 | D116: Miscellaneous | H116: 0 | J116: =ROUND(A116*H116,2) -> 0 | L116: =ROUND(J116*$L$115, 2) -> 0 | M116: =ROUND(J116*$M$115, 2) -> 0 | N116: =ROUND(J116*$N$115, 2) -> 0 | O116: =J116+L116+M116+N116 -> 0
A117: 0 | D117: Miscellaneous | H117: 0 | J117: 0 | L117: 0 | M117: 0 | N117: =ROUND(J117*$N$115, 2) -> 0 | O117: 0
A118: 0 | D118: Miscellaneous | H118: 0 | J118: 0 | L118: 0 | M118: 0 | N118: 0 | O118: 0
A119: 0 | D119: Miscellaneous | H119: 0 | J119: 0 | L119: 0 | M119: 0 | N119: 0 | O119: 0
A120: 0 | D120: Miscellaneous | H120: 0 | J120: 0 | L120: 0 | M120: 0 | N120: 0 | O120: 0
A121: 0 | D121: Miscellaneous | H121: 0 | J121: 0 | L121: 0 | M121: =ROUND(J121*$M$115, 2) -> 0 | N121: 0 | O121: 0
A122: 0 | D122: Miscellaneous | H122: 0 | J122: 0 | L122: 0 | M122: 0 | N122: 0 | O122: 0
A123: 0 | D123: Miscellaneous | H123: 0 | J123: 0 | L123: 0 | M123: 0 | N123: 0 | O123: 0
A124: 0 | D124: Miscellaneous | H124: 0 | J124: 0 | L124: =ROUND(J124*$L$115, 2) -> 0 | M124: 0 | N124: 0 | O124: 0
A125: 0 | D125: Miscellaneous | H125: 0 | J125: 0 | L125: 0 | M125: 0 | N125: 0 | O125: 0
A126: 0 | D126: Miscellaneous | H126: 0 | J126: 0 | L126: 0 | M126: 0 | N126: 0 | O126: 0
A127: 0 | D127: Miscellaneous | H127: 0 | J127: 0 | L127: 0 | M127: 0 | N127: 0 | O127: 0
A128: Total Other Materials with Overheads | O128: =SUM(O116:O127) -> 0
A130: NOTES:
A131: 1Unit cost rate comes from McJunkin material listing provided by Connie Fennell.
A132: 2Stores overhead rate will update each October. See Josh Densman for annual update.
A133: 3State overhead rate will update each October. See Josh Densman for annual update. Also, state overhead rate is different for each KMD jurisdiction.
A134: 4Business unit overhead rate will update each October. See Josh Densman for annual update.
A135: 5Shared services overhead rate will update each October. See Josh Densman for annual update.
A136: Cells containing bolded blue text or number may be updated by user depending on the need and situation.

Sheet EQUIPMENT
A2: EQUIPMENT CALCULATION
A5: EQUIPMENT TYPE | C5: RATE | E5: HOURS
C6: PER HR1 | E6: USED | H6: TOTAL
A7: PASSENGER CARS | C7: 15 | E7: 0 | H7: =ROUND(C7*E7, 2) -> 0
A8: 1/2 TON PICKUP (F-150) | C8: 19 | E8: 0 | H8: =ROUND(C8*E8, 2) -> 0
A9: VANS | C9: 19 | E9: 0 | H9: 0
A10: 3/4 TON PICKUP (F-250) | C10: 20 | E10: 0 | H10: 0
A11: 1 TON TRUCKS (F-350) | C11: 24 | E11: 0 | H11: 0
A12: 1.5 TON TRUCKS (F-450 & F-550) | C12: 24 | E12: 0 | H12: 0
A13: 2 TON TRUCKS (MAINLINE F-650 OR GREATER) | C13: 30 | E13: 0 | H13: 0
A14: UTILITY TRAILER | C14: 8 | E14: 0 | H14: 0
A15: BACKHOE TRAILER | C15: 8 | E15: 0 | H15: 0
A16: BACKHOE | C16: 32 | E16: 0 | H16: 0
A17: SMALL TRENCHER | C17: 20 | E17: 0 | H17: 0
A18: LARGE TRENCHER | C18: 30 | E18: 0 | H18: 0
A19: MUELLER TAPPING TRUCK | C19: 220 | E19: 0 | H19: 0
A20: BORING MACHINE | C20: 100 | E20: 0 | H20: 0
A21: MISCELLANEOUS | C21: 0 | E21: 0 | H21: 0
A22: MISCELLANEOUS | C22: 0 | E22: 0 | H22: 0
A23: MISCELLANEOUS | C23: 0 | E23: 0 | H23: 0
A24: TOTAL | H24: =SUM(H7:H23) -> 0
A26: NOTES:
A28: 1Equipment rates per hour provided by Fleet Department. Rates will be updated each October
A29: Cells containing bolded blue text or number may be updated by user depending on the need and situation.

Sheet Lost Gas Calculator
A1: Pipe Size | D1: 1) Fill out all Information in Rows 1-6 2) Click Rectangular Hole if damage is given as length and width. Enter dimensions 3) Click Circular Hole if damage is circular. Enter dimensions 4) Click Calculate Gas Loss
A2: Material Type
A3: Pressure (PSIG)
A4: Duration (Minutes)
A5: Distance to Feeder Main or Regulator Station (Feet)
A6: Main or Service
D7: Calculator uses IGT Flow Formula
A8: Gas Loss Flow Rate | B8: ='Lost Gas Calculation'!B13 -> 0 | C8: Cubic Feet/Min.
A9: Gas Loss in Cubic Feet | B9: ='Lost Gas Calculation'!B14 -> 0 | C9: Cubic Feet
A10: Gas Loss in Pounds | B10: ='Lost Gas Calculation'!B15 -> 0 | C10: Pounds
A11: Gas Loss in CCF | B11: ='Lost Gas Calculation'!B16 -> 0 | C11: CCF | D11: IF LARGER THAN 1,000 CCF CONTACT TECH. SERVICES
A12: Gas Loss in MCF | B12: ='Lost Gas Calculation'!B17 -> 0 | C12: MCF

Sheet OUTSIDE SERVICES
A2: OUTSIDE SERVICES CALCULATION
C5: RATE | E5: HOURS
A6: VENDOR NAME: | C6: PER HR | E6: USED | H6: TOTAL
C7: 0 | E7: 0 | H7: =ROUND(C7*E7, 2) -> 0
C8: 0 | E8: 0 | H8: =ROUND(C8*E8, 2) -> 0
C9: 0 | E9: 0 | H9: =ROUND(C9*E9, 2) -> 0
C10: 0 | E10: 0 | H10: =ROUND(C10*E10, 2) -> 0
C11: 0 | E11: 0 | H11: 0
C12: 0 | E12: 0 | H12: 0
C13: 0 | E13: 0 | H13: 0
C14: 0 | E14: 0 | H14: 0
A15: TOTAL | H15: =SUM(H7:H14) -> 0
A17: NOTES:

Sheet BILLING SUMMARY
B2: ATMOS ENERGY CORPORATION
B3: KENTUCKY / MID-STATES DIVISION
B4: KENTUCKY OPERATIONS
B5: 3RD PARTY DAMAGE BILLING
B8: CUSTOMER NAME:
B9: BILLING ADDRESS:
B10: CITY, STATE, & ZIP CODE:
B11: PHONE #:
B12: ATMOS WORK CENTER:
B13: DATE OF DAMAGE:
B14: DAMAGE LOCATION:
B15: ASSET #:
B16: eAM #:
B17: SAP INVOICE #:
C20: LINE NO. | D20: CHARGE TYPE:
C22: 1 | D22: LABOR | M22: =LABOR!W48 -> 98.3
C24: 2 | D24: MATERIALS | M24: =MATERIALS!O128+MATERIALS!O110 -> 0
C26: 3 | D26: EQUIPMENT | M26: =EQUIPMENT!H24 -> 0
G27: Enter PGA Rate (per MCF) | K27: Volume (MCF)
C28: 4 | D28: GAS LOSS COSTS | G28: 0 | K28: 0 | M28: =G28*'Lost Gas Calculator'!B12 -> 0
C30: 5 | D30: OUTSIDE SERVICES | M30: ='OUTSIDE SERVICES'!H15 -> 0
C32: 6 | D32: MISCELLANEOUS COSTS | M32: 0
C34: 7 | D34: TOTAL 3RD PARTY DAMAGE BILLING | M34: =M22+M24+M26+M28+M30+M32 -> 98.3

Sheet Workcenter Dropdown List (hidden)
A1: TN Work Centers
A2: 2609 - KY Storage
A3: 2634 - Madisonville
A4: 2635 - Princeton
A5: 2636 - Owensboro
A6: 2637 - Paducah
A7: 2638 - Mayfield
A8: 2734 - Bowling Green
A9: 2735 - Glasgow
A10: 2736 - Hopkinsville
A11: 2737 - Danville
A12: 2738 - Campbellsville
A13: 2739 - Shelbyville, KY

Sheet Lost Gas Calculation (hidden)
A1: Hydraulic Hole Size | B1: ='Data Sheet'!H5 -> 0
A2: Pipe Size | B2: ='Lost Gas Calculator'!B1 -> 0
A3: Material Type | B3: ='Lost Gas Calculator'!B2 -> 0
A4: Pipe ID | B4: =IF(B3="Steel",VLOOKUP(B2,'Data Sheet'!A4:C14,2,FALSE),IF(B3="PE",VLOOKUP(B2,'Data Sheet'!A4:C114,3,FALSE),"N/A")) -> N/A
A5: Type of Break | B5: =IF(B1>=B2,"Complete Break","Hole in Pipe") -> Complete Break
A6: Main or Service | B6: ='Lost Gas Calculator'!B6 -> 0
A7: Service Size and Type | B7: =IF(B6="Service",B2&B3,"N/A") -> N/A
A8: Main Size and Type | B8: =IF(B6="Main",B2&B3," ") -> 
A9: Pressure | B9: ='Lost Gas Calculator'!B3 -> 0
A10: Duration | B10: ='Lost Gas Calculator'!B4 -> 
A11: Distance | B11: ='Lost Gas Calculator'!B5 -> 
A13: Gas Loss Flow Rate | C13: Cubic Feet/Min.
A14: Gas Loss in Cubic Feet | C14: Cubic Feet
A15: Gas Loss in Pounds | C15: Pounds
A16: Gas Loss in CCF | C16: CCF
A17: Gas Loss in MCF | C17: MCF

Sheet Data Sheet (hidden)
A1: Pipe Size | E1: Material Type | H1: Rectangular Hole | K1: Round Hole
G2: Length | J2: Diameter
B3: Steel | C3: PE | E3: PE | G3: Width
A4: 0.5 | B4: 0.622 | C4: 0.445 | E4: Steel | G4: Area | H4: =H3*H2 -> 0
A5: 0.75 | B5: 0.824 | C5: 0.86 | G5: Hydraulic Diamter | H5: =IF(H4>0,H4*4/(H3*2+H2*2),K2) -> 0
A6: 1 | B6: 1.049 | C6: 1.075
A7: 1.25 | B7: 1.38 | C7: 1.34
A8: 2 | B8: 2.067 | C8: 1.917 | G8: Main
A9: 3 | B9: 3.068 | C9: 2.826 | G9: Service
A10: 4 | B10: 4.026 | C10: 3.633
A11: 6 | B11: 6.065 | C11: 5.349
A12: 8 | B12: 7.981 | C12: 8.679
A13: 10 | B13: 10.02 | G13: Tennessee | H13: 0.0896
A14: 12 | B14: 12 | G14: Kentucky | H14: 0.0855
G15: Virginia | H15: 0.1286
